bitfinex-derivatives/quotes_SOLF0:USTF0_20241230
["timestamp","ask_amount","ask_price","bid_price","bid_amount"]
[1735523964786,8.24251986,193.04,192.99,2.5961]
[1735523965290,8.24251986,193.04,192.97,8.24251986]
[1735523965494,8.24251986,193.04,192.99,2.5961]
[1735523966487,8.24251986,193.02,192.95,8.24251986]
[1735523966687,8.24251986,193.02,192.97,2.5963]
[1735523966886,8.24251986,193.02,192.95,8.24251986]
[1735523968592,8.24251986,193.02,192.97,2.5963]
[1735523969789,8.24251986,193.02,192.95,8.24251986]
[1735523969790,1.7183,193.08,192.99,8.24251986]
[1735523970097,8.24251986,193.06,192.99,8.24251986]
[1735523970693,8.24251986,193.04,192.97,8.24251986]
[1735523971395,8.24251986,193.04,193.01,2.5958]
[1735523971894,8.24251986,193.02,192.92,1.8277]
[1735523972096,8.24251986,192.98,192.92,1.8277]
[1735523972800,2.5959,193.01,192.96,2.5965]
[1735523972993,8.24251986,192.98,192.96,2.5965]
[1735523974299,15.51772808,193.02,192.96,2.5965]
[1735523975899,15.51772808,193.02,192.97,2.5963]
[1735523978399,2.5966,192.95,192.91,2.5971]
[1735523978703,16.32202808,192.99,192.89,1.7502]
[1735523979497,2.5963,192.98,192.93,2.5969]
[1735523980901,2.5963,192.98,192.89,1.7502]
[1735523982110,16.32202808,193.02,192.9,12.92202808]
[1735523982402,16.32202808,193.02,192.9,14.64492808]
[1735523982599,7.18457028,193.1,192.93,12.92202808]
[1735523982799,12.92202808,193.06,192.94,3.4]
[1735523984195,1.83,193.1,192.99,12.92202808]
[1735523984395,28.53951022,193.15,193.05,12.92202808]
[1735523984594,28.53951022,193.15,193.14,12.92202808]
[1735523984806,28.53951022,193.15,193.14,15.51612808]
[1735523985913,178.14011449,193.2,193.14,15.51612808]
[1735523985914,2.5926,193.25,193.16,2.5937]
[1735523986112,7.13487755,193.29,193.16,2.5937]
[1735523986408,3.4,193.27,193.16,2.5937]
[1735523987108,7.7437,193.26,193.14,12.92202808]
[1735523987309,5.1511,193.26,193.17,12.92202808]
[1735523987502,7.13487755,193.33,193.23,12.92202808]
[1735523987503,8.79497755,193.33,193.23,12.92202808]
[1735523988511,2.5919,193.3,193.23,15.51482808]
[1735523988707,12.92202808,193.25,193.06,5.1981]
[1735523988904,12.92202808,193.28,193.1,12.92202808]
[1735523988905,2.5931,193.21,193.1,12.92202808]
[1735523989102,12.92202808,193.22,193.1,12.92202808]
[1735523989506,2.5934,193.19,193.12,2.5942]
[1735523990406,2.5934,193.19,193.1,15.51652808]
[1735523990605,2.5934,193.19,193.1,12.92202808]
[1735523991505,2.5934,193.19,193.11,2.5944]
[1735523992516,2.5934,193.19,193.12,2.5943]
[1735523992919,1.6601,193.21,193.1,12.92202808]
[1735523993306,1.6601,193.21,193.12,2.5942]
[1735523994409,2.5934,193.19,193.12,2.5942]
[1735523995706,4.2533,193.21,193.14,2.594]
[1735523997713,2.5934,193.19,193.12,5.9943]
[1735523998216,2.5934,193.19,193.12,2.5943]
[1735523999514,2.5938,193.17,193.1,18.91652808]
[1735523999714,1.6601,193.21,193.1,16.32202808]
[1735523999910,1.6601,193.21,193.1,12.92202808]
[1735524000115,2.5935,193.19,193.11,2.5944]
[1735524000316,2.5935,193.19,193.06,5.1981]
[1735524000317,12.92202808,193.19,193.08,3.38]
[1735524000612,12.92202808,193.19,193.07,12.92202808]
[1735524000613,1.6601,193.21,193.15,2.5939]
[1735524000816,1.6601,193.21,193.12,3.38]
[1735524001021,1.6601,193.21,193.1,16.30202808]
[1735524001411,1.6601,193.21,193.13,2.5941]
[1735524001617,1.6601,193.21,193.1,16.30202808]
[1735524002716,1.7397,193.24,193.13,12.92202808]
[1735524002922,15.51462808,193.26,193.19,2.5933]
[1735524003117,12.92202808,193.26,193.15,3.38]
[1735524004222,12.92202808,193.23,193.15,3.38]
[1735524004518,2.5931,193.21,193.15,2.5939]
[1735524005120,12.92202808,193.23,193.13,16.30202808]
[1735524005319,12.92202808,193.26,193.13,16.30202808]
[1735524005819,2.5926,193.25,193.13,16.30202808]
[1735524006024,12.92202808,193.26,193.13,16.30202808]
[1735524006916,12.92202808,193.25,193.13,16.30202808]
[1735524007324,15.51462808,193.25,193.13,16.30202808]
[1735524007524,12.92202808,193.25,193.13,16.30202808]
[1735524008126,12.92202808,193.25,193.2,2.5932]
[1735524008522,2.5925,193.26,193.2,2.5932]
[1735524008727,16.33512808,193.28,193.2,2.5932]
[1735524008930,2.5926,193.25,193.2,2.5932]
[1735524011828,7.13487755,193.34,193.2,12.92202808]
[1735524012024,7.13487755,193.34,193.28,12.92202808]
[1735524012225,7.13487755,193.34,193.2,12.92202808]
[1735524012226,7.13487755,193.34,193.31,12.92202808]
[1735524012523,7.13487755,193.34,193.33,2.5915]
[1735524012931,7.13487755,193.34,193.32,2.5916]
[1735524013132,7.13487755,193.34,193.28,3.38]
[1735524013829,15.51312808,193.36,193.28,3.38]
[1735524014027,14.69922808,193.36,193.28,3.38]
[1735524014324,2.5915,193.34,193.28,5.9721]
[1735524014530,14.69922808,193.36,193.28,5.9721]
[1735524015226,14.69922808,193.36,193.3,2.5919]
[1735524015227,1.7772,193.36,193.3,2.5919]
[1735524015433,12.92202808,193.39,193.28,3.38]
[1735524016131,2.5908,193.39,193.29,12.92202808]
[1735524017030,1.6869,193.4,193.32,12.92202808]
[1735524017232,1.6869,193.4,193.33,3.38]
[1735524017931,4.2775,193.4,193.35,2.5911]
[1735524018125,4.2775,193.4,193.3,1.8178]
[1735524018126,12.92202808,193.38,193.3,1.8178]
[1735524018331,12.92202808,193.38,193.29,3.38]
[1735524019329,4.3722,193.39,193.29,16.30202808]
[1735524019330,1.7814,193.39,193.29,16.30202808]
[1735524019632,1.6869,193.4,193.29,16.30202808]
[1735524019828,1.6869,193.4,193.3,1.8154]
[1735524020330,1.6869,193.4,193.31,1.774]
[1735524020733,12.92202808,193.41,193.31,1.774]
[1735524020925,2.5904,193.42,193.32,12.92202808]
[1735524022433,2.5904,193.42,193.36,2.591]
[1735524023937,15.51222808,193.44,193.35,3.38]
[1735524024539,12.92202808,193.44,193.39,2.5906]
[1735524024736,12.92202808,193.47,193.39,2.5906]
[1735524026039,12.92202808,193.44,193.35,3.38]
[1735524026241,12.92202808,193.41,193.32,3.38]
[1735524026533,12.92202808,193.41,193.31,1.774]
[1735524026534,2.5911,193.37,193.31,4.3658]
[1735524026736,12.92202808,193.35,193.24,43.79766014]
[1735524026939,15.51382808,193.32,193.24,3.38]
[1735524027134,12.92202808,193.29,193.21,2.96046312]
[1735524028035,12.92202808,193.29,193.2,3.38]
[1735524028241,20.61414906,193.31,193.2,3.38]
[1735524028442,2.5921,193.29,193.23,2.5928]
[1735524028942,2.5921,193.29,193.2,3.38]
[1735524029147,2.5917,193.32,193.26,2.5925]
[1735524029342,20.61414906,193.34,193.2,3.38]
[1735524029740,23.20554906,193.34,193.28,2.5922]
[1735524029947,5.2059,193.36,193.25,3.38]
[1735524030243,7.797,193.36,193.29,2.5919]
[1735524030442,7.797,193.36,193.25,3.38]
[1735524030636,4.417,193.36,193.26,1.6775]
[1735524030839,1.8259,193.36,193.29,2.5921]
[1735524031035,2.5913,193.35,193.29,2.5921]
[1735524031240,2.5913,193.35,193.26,1.6775]
[1735524031241,1.8259,193.36,193.26,1.6775]
[1735524031440,1.8259,193.36,193.29,2.5921]
[1735524031645,1.8259,193.36,193.26,1.6775]
[1735524032145,1.8259,193.36,193.3,2.5919]
[1735524032447,24.13504906,193.4,193.26,1.6775]
[1735524032648,3.5209,193.4,193.27,1.8046]
[1735524033548,6.1116,193.4,193.27,22.41874906]
[1735524034045,3.5209,193.4,193.27,22.41874906]
[1735524034249,3.5209,193.4,193.32,2.5915]
[1735524034250,2.5909,193.38,193.32,2.5915]
[1735524034449,3.5209,193.4,193.27,22.41874906]
[1735524034644,3.5209,193.4,193.28,3.38]
[1735524035252,5.119,193.42,193.28,3.38]
[1735524035547,2.5905,193.41,193.34,2.5913]
[1735524035749,2.5905,193.41,193.28,3.38]
[1735524036051,7.7094,193.42,193.28,3.38]
[1735524036649,2.5905,193.41,193.35,2.5912]
[1735524036840,5.119,193.42,193.28,3.38]
[1735524037245,1.739,193.42,193.28,3.38]
[1735524037452,52.56405928,193.46,193.3,20.61414906]
[1735524038045,50.85325928,193.46,193.3,20.61414906]
[1735524038247,28.53951022,193.46,193.33,20.61414906]
[1735524038448,28.53951022,193.46,193.34,3.38]
[1735524038650,7.13487755,193.47,193.34,3.38]
[1735524038948,7.13487755,193.47,193.35,5.4134]
[1735524039145,7.13487755,193.47,193.38,2.5908]
[1735524039354,7.13487755,193.47,193.39,3.38]
[1735524039746,9.72457755,193.47,193.4,2.5904]
[1735524039950,9.72457755,193.47,193.39,3.38]
[1735524040148,2.5897,193.47,193.39,3.38]
[1735524041349,1.6856,193.48,193.39,3.38]
[1735524041544,20.61414906,193.46,193.39,3.38]
[1735524041749,20.61414906,193.46,193.35,3.6184]
[1735524042047,2.5901,193.44,193.35,3.6184]
[1735524042246,20.61414906,193.46,193.35,3.6184]
[1735524042444,1.6856,193.48,193.42,2.5902]
[1735524042949,2.5896,193.47,193.41,2.5904]
[1735524043143,8.82047755,193.48,193.39,3.38]
[1735524043744,1.6856,193.48,193.43,2.59]
[1735524043950,1.6856,193.48,193.39,3.38]
[1735524044149,1.6856,193.48,193.44,2.59]
[1735524044456,7.13487755,193.51,193.39,3.38]
[1735524044847,30.33802661,193.52,193.42,2.5902]
[1735524045050,27.74902661,193.52,193.39,3.38]
[1735524045748,2.5891,193.51,193.45,2.5898]
[1735524045949,27.74902661,193.52,193.44,3.38]
[1735524046251,1.7948,193.54,193.44,3.38]
[1735524046648,1.7948,193.54,193.47,2.5896]
[1735524047157,2.589,193.52,193.45,2.5898]
[1735524047850,1.7948,193.54,193.45,2.5898]
[1735524048048,20.61414906,193.52,193.36,20.61414906]
[1735524048253,20.61414906,193.49,193.4,3.38]
[1735524048750,2.5897,193.47,193.42,2.5903]
[1735524049354,2.5898,193.46,193.4,2.5905]
[1735524049653,20.61414906,193.46,193.36,3.38]
[1735524050556,2.59,193.44,193.38,2.5908]
[1735524051351,2.5896,193.47,193.41,2.5904]
[1735524051556,27.74902661,193.49,193.36,3.38]
[1735524052148,20.61414906,193.46,193.35,3.6184]
[1735524052451,1.8078,193.45,193.34,3.38]
[1735524052755,3.499,193.45,193.34,3.38]
[1735524053353,28.53951022,193.47,193.36,20.61414906]
[1735524053854,28.53951022,193.47,193.37,3.4698]
[1735524054254,115.96584091,193.5,193.4,2.5906]
[1735524054557,30.34731022,193.5,193.41,3.38]
[1735524054745,30.34731022,193.5,193.47,2.5896]
[1735524055251,30.34731022,193.5,193.41,3.38]
[1735524055556,1.8078,193.5,193.41,3.38]
[1735524055751,7.13487755,193.55,193.41,3.38]
[1735524055955,7.13487755,193.55,193.42,20.61414906]
[1735524056857,3.5986,193.56,193.51,2.5891]
[1735524058145,3.5986,193.56,193.49,3.38]
[1735524058345,3.5986,193.56,193.5,2.5891]
[1735524058848,3.5986,193.56,193.49,3.38]
[1735524059055,1.8275,193.56,193.53,2.5888]
[1735524059954,1.8275,193.56,193.52,2.589]
[1735524060150,1.8275,193.56,193.49,3.38]
[1735524060552,2.5886,193.55,193.49,3.38]
[1735524060752,1.8275,193.56,193.49,3.38]
[1735524060953,1.8275,193.56,193.39,20.61414906]
[1735524060954,1.8275,193.56,193.45,3.38]
[1735524061156,20.61414906,193.54,193.42,3.38]
[1735524061359,1.7369,193.53,193.42,3.38]
[1735524063360,1.7369,193.53,193.41,3.38]
[1735524063865,2.5894,193.49,193.43,2.5902]
[1735524064053,1.7369,193.53,193.43,2.5902]
[1735524064562,1.7369,193.53,193.41,3.38]
[1735524065259,7.13487755,193.54,193.42,20.61414906]
[1735524065658,58.90652046,193.56,193.42,20.61414906]
[1735524065659,4.4159,193.56,193.42,20.61414906]
[1735524066258,4.4159,193.56,193.49,2.5892]
[1735524066461,1.8275,193.56,193.47,3.38]
[1735524066860,1.8275,193.56,193.47,5.9695]
[1735524067168,2.5889,193.53,193.47,5.9695]
[1735524068363,2.589,193.52,193.47,3.38]
[1735524068577,20.61414906,193.52,193.4,3.38]
[1735524068972,1.712,193.51,193.41,2.5904]
[1735524069178,20.61414906,193.49,193.41,2.5904]
[1735524069380,20.61414906,193.46,193.33,3.5152]
[1735524069680,3.38,193.45,193.36,2.5911]
[1735524070177,2.5904,193.42,193.36,2.5911]
[1735524070375,3.38,193.45,193.33,1.7064]
[1735524070571,20.61414906,193.43,193.28,22.42294906]
[1735524070771,20.61414906,193.43,193.29,3.38]
[1735524070975,20.61414906,193.43,193.33,2.5915]
[1735524071175,20.61414906,193.43,193.29,3.38]
[1735524071478,2.5904,193.41,193.35,2.5912]
[1735524072382,2.5906,193.4,193.33,2.5914]
[1735524072680,2.5906,193.4,193.31,3.38]
[1735524072681,1.7266,193.4,193.31,3.38]
[1735524072981,1.7266,193.4,193.36,2.591]
[1735524073183,1.7266,193.4,193.31,3.38]
[1735524073884,1.7266,193.4,193.35,2.5911]
[1735524074284,1.7266,193.4,193.31,3.38]
[1735524074578,31.91951022,193.47,193.31,23.99414906]
[1735524074786,33.64611022,193.47,193.31,23.99414906]
[1735524074983,5.1066,193.47,193.34,20.61414906]
[1735524075179,1.7266,193.47,193.37,20.61414906]
[1735524075476,28.53951022,193.5,193.38,3.38]
[1735524075677,3.38,193.52,193.38,6.7912]
[1735524076278,3.38,193.52,193.47,2.5896]
[1735524076476,3.38,193.52,193.43,3.38]
[1735524076676,30.26831022,193.53,193.43,3.38]
[1735524076882,1.7288,193.53,193.43,3.38]
[1735524078283,1.7288,193.53,193.47,2.5896]
[1735524078679,2.589,193.52,193.45,2.5898]
[1735524078878,1.7288,193.53,193.43,3.38]
[1735524079079,2.5895,193.48,193.42,2.5903]
[1735524079281,20.61414906,193.52,193.4,3.38]
[1735524079480,20.61414906,193.49,193.38,1.719]
[1735524079679,20.61414906,193.49,193.31,3.392]
[1735524079680,2.59,193.45,193.37,3.38]
[1735524079874,20.61414906,193.49,193.37,3.38]
[1735524080083,1.7821,193.44,193.37,3.38]
[1735524080385,1.7821,193.44,193.39,2.5907]
[1735524080581,1.7821,193.44,193.37,3.38]
[1735524080780,1.7821,193.44,193.39,2.5907]
[1735524081680,1.7821,193.44,193.4,2.5905]
[1735524081881,28.53951022,193.49,193.37,3.38]
[1735524082185,28.53951022,193.49,193.37,23.99414906]
[1735524082381,7.13487755,193.49,193.38,1.7068]
[1735524082782,7.13487755,193.49,193.39,1.719]
[1735524083276,1.7562,193.51,193.4,1.7045]
[1735524084083,1.7562,193.51,193.43,2.5901]
[1735524084276,1.7562,193.51,193.44,3.38]
[1735524084481,2.5887,193.54,193.44,3.38]
[1735524084875,2.5887,193.54,193.48,2.5895]
[1735524086887,2.5887,193.54,193.49,2.5893]
[1735524087186,9.72337755,193.56,193.44,3.38]
[1735524087387,30.29931022,193.57,193.51,2.589]
[1735524087880,2.5885,193.56,193.44,3.38]
[1735524088077,30.29931022,193.57,193.44,3.38]
[1735524088279,50.91345928,193.57,193.44,3.38]
[1735524088788,2.5887,193.55,193.44,3.38]
[1735524088986,22.37394906,193.57,193.44,3.38]
[1735524089191,1.7598,193.57,193.44,3.38]
[1735524091587,4.3481,193.57,193.51,2.589]
[1735524091891,1.7598,193.57,193.49,3.36]
[1735524092091,28.53951022,193.6,193.49,3.36]
[1735524092787,31.12731022,193.61,193.49,3.36]
[1735524093193,28.53951022,193.61,193.57,2.5883]
[1735524093692,28.53951022,193.61,193.49,3.36]
[1735524093992,22.37394906,193.63,193.49,3.36]
[1735524094288,22.37394906,193.63,193.48,1.779]
[1735524094492,20.61414906,193.6,193.52,2.589]
[1735524094991,2.5878,193.61,193.55,2.5885]
[1735524095189,22.37394906,193.63,193.55,2.5885]
[1735524095493,2.5881,193.59,193.53,2.5887]
[1735524096290,2.5878,193.61,193.55,2.5886]
[1735524096491,22.37394906,193.63,193.49,3.36]
[1735524096689,1.7598,193.63,193.49,23.97414906]
[1735524096889,1.7598,193.63,193.57,2.5882]
[1735524097591,1.7598,193.63,193.54,3.36]
[1735524097791,1.7598,193.63,193.49,20.61414906]
[1735524097991,22.37394906,193.63,193.5,3.36]
[1735524098194,2.5878,193.61,193.53,2.5887]
[1735524098394,2.5878,193.61,193.5,3.36]
[1735524098689,22.37394906,193.63,193.5,3.36]
[1735524098892,2.5877,193.62,193.56,2.5883]
[1735524100289,22.37394906,193.63,193.54,2.5886]
[1735524100490,22.37394906,193.63,193.5,3.36]
[1735524101492,22.37394906,193.63,193.53,2.5887]
[1735524101990,22.37394906,193.63,193.5,3.36]
[1735524102394,22.37394906,193.63,193.47,3.383]
[1735524102593,20.61414906,193.6,193.47,3.383]
[1735524102893,20.61414906,193.6,193.48,3.36]
[1735524103092,2.5885,193.56,193.51,2.589]
[1735524104097,2.5885,193.56,193.48,3.36]
[1735524104294,2.5885,193.56,193.51,2.589]
[1735524106589,12.84488289,193.59,193.47,14.53078289]
[1735524106788,2.5887,193.55,193.49,2.5893]
[1735524107191,2.5883,193.57,193.51,2.589]
[1735524107693,2.5886,193.55,193.5,2.5892]
[1735524109296,12.84488289,193.59,193.48,3.36]
[1735524109791,19.97976044,193.59,193.48,3.36]
[1735524109992,19.97976044,193.59,193.47,5.0459]
[1735524110398,19.97976044,193.59,193.42,1.7075]
[1735524110399,12.84488289,193.56,193.42,1.7075]
[1735524110592,2.589,193.52,193.44,3.36]
[1735524111388,2.589,193.52,193.47,2.5896]
[1735524111598,2.5892,193.51,193.44,3.36]
[1735524112300,2.5892,193.51,193.46,2.5897]
[1735524113000,12.84488289,193.54,193.44,3.36]
[1735524113190,2.589,193.52,193.47,2.5896]
[1735524115296,12.84488289,193.51,193.38,12.84488289]
[1735524115602,12.84488289,193.48,193.39,3.36]
[1735524116002,1.7493,193.47,193.39,16.20488289]
[1735524118303,1.7493,193.47,193.46,2.5898]
[1735524119093,28.53951022,193.52,193.47,2.5896]
[1735524119094,2.589,193.52,193.47,2.5896]
[1735524119298,1.7732,193.53,193.44,3.36]
[1735524119996,1.7732,193.53,193.45,12.84488289]
[1735524120994,4.3621,193.53,193.44,3.36]
[1735524121197,1.7732,193.53,193.44,3.36]
[1735524122601,1.7732,193.53,193.48,2.5894]
[1735524122796,1.7732,193.53,193.44,3.36]
[1735524123199,1.7732,193.53,193.46,2.5897]
[1735524123395,1.7732,193.53,193.44,3.36]
[1735524123396,14.61808289,193.53,193.44,3.36]
[1735524123602,2.5897,193.47,193.42,2.5903]
[1735524124800,12.84488289,193.5,193.39,2.5906]
[1735524125103,12.84488289,193.47,193.39,2.5906]
[1735524125298,12.84488289,193.47,193.36,16.20488289]
[1735524125604,2.5902,193.44,193.36,12.84488289]
[1735524125801,3.4638,193.46,193.35,3.36]
[1735524126006,1.762,193.43,193.35,3.36]
[1735524126205,1.762,193.43,193.31,61.87159769]
[1735524126505,12.84488289,193.41,193.31,58.51159769]
[1735524127104,2.5907,193.4,193.33,2.5915]
[1735524127605,2.5907,193.4,193.31,58.51159769]
[1735524128402,2.5907,193.39,193.33,2.5915]
[1735524128607,12.84488289,193.38,193.27,16.20528289]
[1735524128807,12.84488289,193.38,193.28,3.36]
[1735524129004,15.43588289,193.38,193.31,2.5917]
[1735524129208,12.84488289,193.38,193.28,3.36]
[1735524129610,15.43578289,193.38,193.31,2.5918]
[1735524130109,15.43578289,193.38,193.28,3.36]
[1735524130311,15.43578289,193.38,193.32,2.5917]
[1735524130504,12.84488289,193.38,193.21,1.6839]
[1735524130813,2.591,193.37,193.27,3.36]
[1735524131509,2.5911,193.36,193.27,3.36]
[1735524131813,2.5911,193.36,193.25,15.80154225]
[1735524132109,2.5911,193.36,193.26,3.36]
[1735524132409,2.5911,193.36,193.29,2.5919]
[1735524133004,2.5913,193.35,193.29,2.5919]
[1735524133512,12.84488289,193.35,193.26,3.36]
[1735524134907,12.84488289,193.32,193.19,12.84488289]
[1735524135107,12.84488289,193.32,193.21,3.36]
[1735524135412,12.84488289,193.29,193.2,2.5933]
[1735524135705,12.84488289,193.26,193.13,12.84488289]
[1735524135907,12.84488289,193.26,193.17,2.5937]
[1735524136109,12.84488289,193.26,193.16,3.36]
[1735524136717,10.49487755,193.35,193.2,12.84488289]
[1735524136916,12.84488289,193.34,193.21,3.36]
[1735524137212,12.84488289,193.34,193.23,12.84488289]
[1735524137707,12.84488289,193.34,193.26,2.5924]
[1735524137905,12.84488289,193.34,193.23,12.84488289]
[1735524139611,12.84488289,193.34,193.27,2.5923]
[1735524140308,2.5917,193.32,193.25,2.5926]
[1735524140707,20.60673476,193.32,193.16,20.60673476]
[1735524141010,20.60673476,193.29,193.17,3.36]
[1735524141515,2.5925,193.27,193.19,2.5933]
[1735524141711,2.5925,193.27,193.17,3.36]
[1735524142802,23.96673476,193.29,193.2,2.5933]
[1735524143009,20.60673476,193.26,193.15,3.36]
[1735524143208,20.60673476,193.26,193.14,3.36]
[1735524143405,2.5932,193.21,193.07,20.60673476]
[1735524143612,20.60673476,193.23,193.08,3.36]
[1735524144909,20.60673476,193.23,193.07,20.60673476]
[1735524145110,2.5933,193.2,193.08,3.36]
[1735524145312,2.5933,193.2,193.09,3.36]
[1735524145511,2.5933,193.2,193.04,20.60673476]
[1735524145512,20.60673476,193.2,193.04,20.60673476]
[1735524145712,2.5939,193.16,193.09,2.5947]
[1735524145912,20.60673476,193.17,193.05,3.36]
[1735524146117,2.5938,193.16,193.1,2.5946]
[1735524146723,20.60673476,193.17,193.05,3.36]
[1735524147419,20.60673476,193.17,193.11,2.5944]
[1735524147617,20.60673476,193.2,193.05,3.36]
[1735524147917,20.60673476,193.23,193.07,20.60673476]
[1735524148121,20.60673476,193.23,193.19,2.5934]
[1735524148322,20.60673476,193.23,193.13,3.36]
[1735524148822,20.60673476,193.23,193.17,2.5936]
[1735524149410,23.19973476,193.23,193.13,3.36]
[1735524149810,20.60673476,193.23,193.13,3.36]
[1735524150216,20.60673476,193.2,193.01,77.40702266]
[1735524150416,23.20043476,193.17,193.1,2.5946]
[1735524151420,2.5939,193.16,193.1,2.5946]
[1735524152520,20.60673476,193.17,193.06,3.36]
[1735524152720,20.60673476,193.2,193.06,3.36]
[1735524152912,23.96673476,193.23,193.17,2.5937]
[1735524153114,23.96673476,193.23,193.12,3.36]
[1735524153315,20.60673476,193.26,193.12,3.36]
[1735524153518,20.60673476,193.26,193.22,2.5929]
[1735524154015,305.76478318,193.43,193.17,3.36]
[1735524154016,20.60673476,193.29,193.17,3.36]
[1735524154222,20.60673476,193.32,193.18,3.36]
[1735524154618,3.36,193.33,193.28,2.5922]
[1735524155116,3.36,193.33,193.23,3.36]
[1735524155322,20.60673476,193.35,193.23,3.36]
[1735524155923,20.60673476,193.35,193.29,2.592]
[1735524158022,20.60673476,193.35,193.3,2.5919]
[1735524159132,20.60673476,193.35,193.29,2.592]
[1735524159323,20.60673476,193.35,193.24,3.36]
[1735524160530,2.5914,193.34,193.24,3.36]
[1735524160731,20.60673476,193.35,193.19,20.60673476]
[1735524160927,20.60673476,193.35,193.28,2.5921]
[1735524161230,20.60673476,193.35,193.2,3.36]
[1735524162434,20.60673476,193.32,193.21,3.36]
[1735524162628,20.60673476,193.32,193.23,2.5927]
[1735524162826,20.60673476,193.29,193.2,3.36]
[1735524163731,20.60673476,193.29,193.21,3.36]
[1735524163923,31.78174628,193.36,193.21,3.36]
[1735524163924,20.60673476,193.32,193.21,3.36]
[1735524164134,3.36,193.35,193.21,3.36]
[1735524164432,20.60673476,193.32,193.21,3.36]
[1735524164824,20.60673476,193.35,193.25,2.5925]
[1735524165028,20.60673476,193.35,193.21,3.36]
[1735524165528,2.5918,193.31,193.21,3.36]
[1735524167433,2.5918,193.31,193.25,2.5926]
[1735524168338,20.60673476,193.32,193.28,2.5921]
[1735524168831,20.60673476,193.32,193.21,3.36]
[1735524170842,20.60673476,193.32,193.26,2.5924]
[1735524171439,20.60673476,193.32,193.27,2.5923]
[1735524171641,20.60673476,193.32,193.21,3.36]
[1735524172646,2.5919,193.31,193.25,2.5925]
[1735524172844,20.60673476,193.32,193.21,3.36]
[1735524173437,20.60673476,193.35,193.21,3.36]
[1735524173833,20.60673476,193.35,193.3,2.5919]
[1735524174540,23.19793476,193.35,193.28,2.592]
[1735524174739,20.60673476,193.35,193.28,2.592]
[1735524174938,2.5917,193.32,193.27,2.5922]
[1735524175345,20.60673476,193.35,193.23,3.36]
[1735524175936,2.5914,193.34,193.29,2.592]
[1735524176240,20.60673476,193.35,193.23,3.36]
[1735524177044,7.10543657,193.39,193.23,3.36]
[1735524177641,2.5907,193.39,193.33,2.5914]
[1735524177847,20.60673476,193.4,193.3,3.36]
[1735524178938,2.5908,193.39,193.33,2.5915]
[1735524179145,20.60673476,193.4,193.33,2.5915]
[1735524179344,20.60673476,193.4,193.3,3.36]
[1735524179750,2.5908,193.39,193.3,3.36]
[1735524179942,20.60673476,193.4,193.3,3.36]
[1735524180637,7.10543657,193.42,193.3,3.36]
[1735524181039,2.5904,193.41,193.36,2.591]
[1735524181244,7.10543657,193.42,193.3,3.36]
[1735524181547,20.60673476,193.43,193.39,2.5906]
[1735524182747,20.60673476,193.43,193.4,2.5905]
[1735524183045,20.60673476,193.43,193.31,3.36]
[1735524183247,20.60673476,193.43,193.35,2.5912]
[1735524183449,2.5907,193.4,193.31,3.36]
[1735524184544,2.5907,193.4,193.36,2.5911]
[1735524185147,2.5907,193.4,193.34,2.5912]
[1735524185342,20.60673476,193.4,193.29,3.36]
[1735524185753,20.60673476,193.4,193.32,2.5916]
[1735524185951,20.60673476,193.4,193.29,3.36]
[1735524186547,2.5907,193.39,193.29,3.36]
[1735524186848,1.6938,193.4,193.29,3.36]
[1735524187254,1.6938,193.4,193.3,1.8183]
[1735524187849,1.6938,193.4,193.38,2.5908]
[1735524189247,1.6938,193.4,193.36,2.591]
[1735524189445,1.6938,193.4,193.34,3.36]
[1735524190750,1.6938,193.4,193.36,2.591]
[1735524190952,4.2845,193.4,193.34,3.36]
[1735524191152,22.30053476,193.4,193.3,5.1783]